[Event "41st Arco Open 2019"]
[Site "Arco"]
[Date "2019.10.09"]
[Round "6"]
[White "Horvath, Csaba"]
[Black "Petrov, Nikita"]
[Result "1/2-1/2"]
[ECO "D38"]
[WhiteElo "2503"]
[BlackElo "2586"]
[Annotator "RC"]
[PlyCount "20"]
[EventDate "2019.10.04"]
[EventType "swiss"]
[EventCountry "ITA"]
[SourceTitle "playchess.com"]
[Source "ChessBase"]
[SourceQuality "1"]
[TimeControl "40/5400+30:1800+30"]

1. d4 {[%emt 0:00:30]} Nf6 {[%emt 0:00:30]} 2. c4 {[%emt 0:00:30]} e6 {[%emt 0:00:30]} 3. Nf3 {[%emt 0:00:30]} d5 {[%emt 0:00:00]} 4. Nc3 {[%emt 0:00:30]} Bb4 5. Bg5 {[%emt 0:00:30]} h6 {[%emt 0:01:30]} 6. Bxf6 Qxf6 {[%emt 0:00:30]} 7. e3 {[%emt 0:01:00]} O-O {[%emt 0:00:30]} 8. Rc1 dxc4 {[%emt 0:03:30]} 9. Bxc4 {[%emt 0:01:00]} c5 {[%emt 0:00:30]} 10. O-O {[%emt 0:01:30]} cxd4 {[%emt 0:01:30]} 1/2-1/2

[Event "41st Arco Open 2019"]
[Site "Arco"]
[Date "2019.10.09"]
[Round "6"]
[White "Favaloro, Andrea"]
[Black "Pasini, Nicolo"]
[Result "1/2-1/2"]
[ECO "A47"]
[WhiteElo "2338"]
[BlackElo "2234"]
[Annotator "RC"]
[PlyCount "63"]
[EventDate "2019.10.04"]
[EventType "swiss"]
[EventCountry "ITA"]
[SourceTitle "playchess.com"]
[Source "ChessBase"]
[SourceQuality "1"]
[TimeControl "40/5400+30:1800+30"]

1. Nf3 {[%emt 0:00:30]} Nf6 {[%emt 0:00:30]} 2. g3 {[%emt 0:00:30]} g6 {[%emt 0:00:30]} 3. b3 {[%emt 0:00:30]} b6 {[%emt 0:00:00]} 4. Bb2 {[%emt 0:00:30]} Bg7 5. Bg2 {[%emt 0:01:30]} Bb7 {[%emt 0:00:00]} 6. O-O O-O {[%emt 0:00:00]} 7. d4 {[%emt 0:04:00]} c5 {[%emt 0:00:30]} 8. dxc5 {[%emt 0:00:00]} bxc5 {[%emt 0:00:00]} 9. c4 {[%emt 0:01:00]} e6 {[%emt 0:01:00]} 10. Nc3 {[%emt 0:02:30]} Qe7 {[%emt 0:02:30]} 11. Qc2 {[%emt 0:08:30]} Nc6 12. Rac1 {[%emt 0:09:30]} Rac8 {[%emt 0:07:00]} 13. Qb1 {[%emt 0:00:30]} d6 14. Rfd1 {[%emt 0:03:30]} Rfd8 {[%emt 0:06:00]} 15. Rd2 {[%emt 0:00:00]} d5 {[%emt 0:10:30]} 16. cxd5 {[%emt 0:10:00]} exd5 {[%emt 0:00:30]} 17. Ng5 {[%emt 0:00:30]} Nd4 {[%emt 0:06:30]} 18. e3 {[%emt 0:21:30]} Nf5 {[%emt 0:32:30]} 19. Re1 {[%emt 0:03:30]} Nd6 {[%emt 0:00:00]} 20. Qa1 {[%emt 0:02:30]} h6 {[%emt 0:00:00]} 21. Nf3 {[%emt 0:03:30]} Nde4 {[%emt 0:04:30]} 22. Rdd1 {[%emt 0:03:30]} Ng4 {[%emt 0:05:30]} 23. Nxe4 {[%emt 0:01:30]} dxe4 {[%emt 0:00:30]} 24. Nd2 {[%emt 0:00:30]} Bxb2 {[%emt 0:03:30]} 25. Qxb2 {[%emt 0:01:30]} f5 {[%emt 0:00:30]} 26. Nc4 {[%emt 0:01:30]} Ba6 {[%emt 0:05:04]} 27. h3 {[%emt 0:05:50]} Nf6 {[%emt 0:00:00]} 28. Bf1 {[%emt 0:00:00]} Kg7 {[%emt 0:00:00]} 29. Qe5 {[%emt 0:00:00]} Qxe5 {[%emt 0:04:59]} 30. Nxe5 {[%emt 0:03:50]} Bxf1 {[%emt 0:00:07]} 31. Kxf1 {[%emt 0:00:00]} Nd5 {[%emt 0:00:30]} 32. Rc1 {[%emt 0:00:00]} 1/2-1/2

[Event "41st Arco Open 2019"]
[Site "Arco"]
[Date "2019.10.09"]
[Round "6"]
[White "Welling, Gerard"]
[Black "Astengo, Corrado"]
[Result "1/2-1/2"]
[ECO "B40"]
[WhiteElo "2302"]
[BlackElo "2105"]
[Annotator "ChessBase"]
[PlyCount "52"]
[EventDate "2019.10.04"]
[EventType "swiss"]
[EventCountry "ITA"]
[SourceTitle "playchess.com"]
[Source "ChessBase"]
[SourceQuality "1"]
[TimeControl "40/5400+30:1800+30"]

1. e4 {[%emt 0:00:30]} c5 {[%emt 0:00:30]} 2. Nf3 {[%emt 0:00:00]} e6 {[%emt 0:00:00]} 3. Be2 {[%emt 0:00:00]} Nc6 {[%emt 0:03:00]} 4. O-O {[%emt 0:00:00]} Be7 {[%emt 0:00:30]} 5. c3 {[%emt 0:04:00]} d5 {[%emt 0:01:30]} 6. exd5 Qxd5 {[%emt 0:00:30]} 7. Na3 {[%emt 0:06:00]} Bd7 {[%emt 0:01:30]} 8. d4 cxd4 {[%emt 0:02:30]} 9. Nb5 {[%emt 0:02:00]} Rc8 {[%emt 0:00:30]} 10. Nfxd4 {[%emt 0:01:30]} a6 {[%emt 0:07:30]} 11. Bf3 {[%emt 0:06:30]} Qc5 12. Nxc6 {[%emt 0:01:30]} Bxc6 {[%emt 0:06:00]} 13. Bxc6+ {[%emt 0:03:30]} Rxc6 {[%emt 0:01:30]} 14. Nd4 {[%emt 0:00:00]} Rd6 {[%emt 0:01:30]} 15. Qe2 {[%emt 0:00:00]} Nf6 {[%emt 0:03:30]} 16. Bf4 {[%emt 0:15:30]} Rd7 {[%emt 0:14:30]} 17. Rad1 {[%emt 0:04:30]} Qb6 {[%emt 0:00:00]} 18. Rfe1 {[%emt 0:01:30]} O-O {[%emt 0:00:00]} 19. Be5 {[%emt 0:10:30]} Rfd8 {[%emt 0:10:30]} 20. Rd3 Ne8 {[%emt 0:08:30]} 21. Rh3 {[%emt 0:04:00]} Bf6 {[%emt 0:01:30]} 22. Qc2 {[%emt 0:07:30]} h6 {[%emt 0:02:30]} 23. Rhe3 {[%emt 0:00:30]} Bxe5 24. Rxe5 {[%emt 0:00:30]} Nf6 {[%emt 0:00:00]} 25. h3 {[%emt 0:01:30]} Rd5 {[%emt 0:03:30]} 26. R5e2 {[%emt 0:00:00]} Qd6 {[%emt 0:00:30]} 1/2-1/2

[Event "41st Arco Open 2019"]
[Site "Arco"]
[Date "2019.10.09"]
[Round "6"]
[White "Zwahr, Paul"]
[Black "Schroeder, Wilfried"]
[Result "0-1"]
[ECO "B12"]
[WhiteElo "2282"]
[BlackElo "2195"]
[Annotator "ChessBase"]
[PlyCount "42"]
[EventDate "2019.10.04"]
[EventType "swiss"]
[EventCountry "ITA"]
[SourceTitle "playchess.com"]
[Source "ChessBase"]
[SourceQuality "1"]
[TimeControl "40/5400+30:1800+30"]

1. e4 {[%emt 0:00:30]} c6 {[%emt 0:00:30]} 2. d4 {[%emt 0:00:00]} d5 {[%emt 0:00:00]} 3. e5 {[%emt 0:00:00]} Bf5 {[%emt 0:00:00]} 4. Nf3 {[%emt 0:00:30]} e6 5. Be2 {[%emt 0:00:00]} Ne7 {[%emt 0:01:00]} 6. O-O Nd7 {[%emt 0:00:30]} 7. Nbd2 {[%emt 0:00:30]} c5 {[%emt 0:00:00]} 8. Nb3 Nc6 {[%emt 0:05:00]} 9. Bf4 {[%emt 0:28:00]} c4 {[%emt 0:04:30]} 10. Nc1 {[%emt 0:00:30]} Be7 {[%emt 0:00:30]} 11. Re1 {[%emt 0:07:30]} Nb4 {[%emt 0:35:30]} 12. g4 {[%emt 0:10:30]} Bg6 {[%emt 0:00:00]} 13. h4 {[%emt 0:10:30]} h6 14. h5 {[%emt 0:01:30]} Bh7 {[%emt 0:00:00]} 15. Rf1 Nxc2 {[%emt 0:00:00]} 16. Rb1 {[%emt 0:06:00]} Nxd4 {[%emt 0:00:00]} 17. Ra1 Nc2 {[%emt 0:05:00]} 18. Rb1 {[%emt 0:04:00]} Ne3 {[%emt 0:00:00]} 19. Bxe3 {[%emt 0:00:30]} Bxb1 {[%emt 0:00:00]} 20. Nd2 {[%emt 0:00:00]} Bh7 {[%emt 0:00:00]} 21. f4 {[%emt 0:00:00]} Bc5 {[%emt 0:08:00]} 0-1

[Event "41st Arco Open 2019"]
[Site "Arco"]
[Date "2019.10.09"]
[Round "6"]
[White "Bifulco, Michel"]
[Black "Medancic, Rikard"]
[Result "0-1"]
[ECO "D02"]
[WhiteElo "2261"]
[BlackElo "2146"]
[Annotator "ChessBase"]
[PlyCount "80"]
[EventDate "2019.10.04"]
[EventType "swiss"]
[EventCountry "ITA"]
[SourceTitle "playchess.com"]
[Source "ChessBase"]
[SourceQuality "1"]
[TimeControl "40/5400+30:1800+30"]

1. d4 {[%emt 0:00:30]} d5 {[%emt 0:00:30]} 2. Nf3 {[%emt 0:00:00]} Nf6 {[%emt 0:00:00]} 3. g3 {[%emt 0:00:00]} Bg4 {[%emt 0:03:00]} 4. Bg2 {[%emt 0:00:30]} e6 5. O-O {[%emt 0:00:00]} Be7 {[%emt 0:02:00]} 6. h3 {[%emt 0:00:00]} Bf5 {[%emt 0:00:30]} 7. c4 {[%emt 0:00:30]} c6 {[%emt 0:00:00]} 8. Nc3 {[%emt 0:04:30]} h6 {[%emt 0:00:00]} 9. Nd2 {[%emt 0:01:30]} Nbd7 {[%emt 0:01:30]} 10. e4 {[%emt 0:02:30]} dxe4 {[%emt 0:00:30]} 11. Ndxe4 {[%emt 0:00:00]} O-O {[%emt 0:02:30]} 12. Be3 {[%emt 0:01:00]} Nxe4 {[%emt 0:00:00]} 13. Nxe4 {[%emt 0:00:30]} Nf6 {[%emt 0:00:00]} 14. Nc3 {[%emt 0:00:30]} Qa5 {[%emt 0:06:30]} 15. a3 {[%emt 0:05:30]} Rac8 {[%emt 0:00:30]} 16. b4 {[%emt 0:00:00]} Qa6 {[%emt 0:00:30]} 17. Qe2 {[%emt 0:02:00]} Rfd8 {[%emt 0:01:30]} 18. Rfd1 {[%emt 0:03:30]} Rd7 {[%emt 0:13:30]} 19. Bf1 {[%emt 0:10:30]} b5 {[%emt 0:34:30]} 20. g4 {[%emt 0:16:30]} Bg6 {[%emt 0:00:30]} 21. d5 {[%emt 0:06:30]} cxd5 {[%emt 0:03:30]} 22. c5 {[%emt 0:17:30]} e5 {[%emt 0:02:30]} 23. Qxb5 {[%emt 0:00:00]} Qe6 {[%emt 0:00:30]} 24. Ra2 {[%emt 0:03:00]} Rdd8 {[%emt 0:10:55]} 25. f4 {[%emt 0:10:03]} exf4 {[%emt 0:01:22]} 26. Bxf4 {[%emt 0:00:14]} Nxg4 {[%emt 0:01:05]} 27. Re2 {[%emt 0:00:48]} Qf5 {[%emt 0:00:13]} 28. hxg4 {[%emt 0:05:54]} Qxf4 {[%emt 0:13:45]} 29. Bg2 {[%emt 0:08:21]} Bg5 {[%emt 0:00:00]} 30. Nxd5 {[%emt 0:00:00]} Qxg4 {[%emt 0:00:00]} 31. c6 {[%emt 0:01:37]} Bh5 {[%emt 0:03:00]} 32. c7 {[%emt 0:01:23]} Qxe2 {[%emt 0:00:00]} 33. Qxe2 {[%emt 0:00:00]} Bxe2 {[%emt 0:00:00]} 34. cxd8=Q+ {[%emt 0:00:56]} Rxd8 {[%emt 0:01:30]} 35. Re1 {[%emt 0:00:34]} Bc4 {[%emt 0:00:00]} 36. Ne7+ {[%emt 0:00:00]} Kf8 {[%emt 0:00:00]} 37. Nc6 {[%emt 0:00:31]} Rd3 {[%emt 0:01:17]} 38. Ne5 {[%emt 0:00:46]} Re3 {[%emt 0:00:00]} 39. Rc1 {[%emt 0:00:00]} Be6 {[%emt 0:00:00]} 40. Nc6 {[%emt 0:00:00]} Rxa3 {[%emt 0:00:00]} 0-1

[Event "41st Arco Open 2019"]
[Site "Arco"]
[Date "2019.10.09"]
[Round "6"]
[White "Curien, Nicolas"]
[Black "Beulertz, Stefan"]
[Result "1-0"]
[ECO "C10"]
[WhiteElo "2261"]
[BlackElo "2035"]
[Annotator "ChessBase"]
[PlyCount "113"]
[EventDate "2019.10.04"]
[EventType "swiss"]
[EventCountry "ITA"]
[SourceTitle "playchess.com"]
[Source "ChessBase"]
[SourceQuality "1"]
[TimeControl "40/5400+30:1800+30"]

1. d4 {[%emt 0:00:30]} e6 {[%emt 0:00:30]} 2. e4 {[%emt 0:00:30]} d5 {[%emt 0:00:00]} 3. Nc3 {[%emt 0:00:00]} a6 {[%emt 0:01:00]} 4. Nf3 {[%emt 0:03:00]} Nf6 5. Bd3 {[%emt 0:06:30]} c5 {[%emt 0:04:00]} 6. e5 {[%emt 0:12:30]} Nfd7 {[%emt 0:00:30]} 7. dxc5 {[%emt 0:01:30]} Nxc5 {[%emt 0:03:30]} 8. O-O Nc6 {[%emt 0:00:30]} 9. Re1 {[%emt 0:09:00]} Nxd3 {[%emt 0:02:30]} 10. Qxd3 {[%emt 0:00:30]} Be7 {[%emt 0:00:30]} 11. Ne2 {[%emt 0:00:30]} Bd7 12. Ned4 {[%emt 0:03:30]} Nb4 {[%emt 0:17:00]} 13. Qe2 {[%emt 0:00:00]} O-O {[%emt 0:04:30]} 14. c3 {[%emt 0:10:00]} Nc6 {[%emt 0:00:00]} 15. Bf4 {[%emt 0:01:30]} Rc8 {[%emt 0:02:00]} 16. Nxc6 {[%emt 0:01:30]} Bxc6 {[%emt 0:14:30]} 17. Nd4 {[%emt 0:00:30]} Bc5 {[%emt 0:00:00]} 18. Rad1 {[%emt 0:00:30]} Qh4 {[%emt 0:00:00]} 19. Bg3 {[%emt 0:07:30]} Qg5 {[%emt 0:02:30]} 20. h4 {[%emt 0:00:00]} Qg6 {[%emt 0:03:30]} 21. Bf4 {[%emt 0:04:00]} h6 {[%emt 0:12:30]} 22. Rd3 {[%emt 0:02:30]} Kh8 {[%emt 0:10:30]} 23. h5 {[%emt 0:00:30]} Qe4 {[%emt 0:00:00]} 24. Qd2 {[%emt 0:00:30]} Qh7 {[%emt 0:02:32]} 25. g4 Bxd4 {[%emt 0:00:30]} 26. Rxd4 {[%emt 0:04:00]} Bd7 27. Kg2 {[%emt 0:00:30]} f6 {[%emt 0:12:26]} 28. exf6 {[%emt 0:07:30]} gxf6 29. Bxh6 {[%emt 0:00:30]} Rg8 {[%emt 0:01:39]} 30. f3 e5 {[%emt 0:00:29]} 31. Rxd5 {[%emt 0:09:13]} Bc6 {[%emt 0:00:00]} 32. Be3 {[%emt 0:02:12]} Bxd5 {[%emt 0:03:08]} 33. Qxd5 {[%emt 0:10:11]} Rcd8 {[%emt 0:00:22]} 34. Qe6 {[%emt 0:00:00]} Rgf8 {[%emt 0:00:00]} 35. Kg3 {[%emt 0:00:00]} Qd7 {[%emt 0:03:44]} 36. Qb6 {[%emt 0:04:05]} Rf7 {[%emt 0:00:21]} 37. Qb3 {[%emt 0:00:00]} Qd5 {[%emt 0:00:00]} 38. Rd1 {[%emt 0:00:00]} Qxd1 {[%emt 0:01:49]} 39. Qxf7 {[%emt 0:02:37]} Qd6 {[%emt 0:00:48]} 40. Qxb7 {[%emt 0:01:11]} e4+ {[%emt 0:00:00]} 41. Kg2 {[%emt 0:05:31]} exf3+ {[%emt 0:02:42]} 42. Qxf3 {[%emt 0:02:30]} Qd5 {[%emt 0:22:19]} 43. Bd4 {[%emt 0:00:30]} Kg8 {[%emt 0:00:00]} 44. Qxd5+ Rxd5 {[%emt 0:00:00]} 45. Kf3 {[%emt 0:04:00]} Kf7 {[%emt 0:00:00]} 46. a4 {[%emt 0:04:02]} Ra5 {[%emt 0:00:00]} 47. b3 {[%emt 0:00:09]} Kg7 48. c4 {[%emt 0:03:14]} Rg5 {[%emt 0:00:00]} 49. b4 {[%emt 0:00:00]} Kf7 {[%emt 0:00:00]} 50. b5 {[%emt 0:01:01]} axb5 {[%emt 0:00:00]} 51. axb5 {[%emt 0:00:12]} f5 {[%emt 0:00:00]} 52. gxf5 {[%emt 0:01:29]} Rxf5+ {[%emt 0:00:00]} 53. Kg4 {[%emt 0:00:06]} Rf1 {[%emt 0:00:00]} 54. c5 {[%emt 0:00:38]} Rb1 {[%emt 0:00:00]} 55. Kf5 {[%emt 0:02:06]} Rxb5 56. h6 {[%emt 0:00:15]} Rb1 {[%emt 0:00:00]} 57. h7 {[%emt 0:00:30]} 1-0

[Event "41st Arco Open 2019"]
[Site "Arco"]
[Date "2019.10.09"]
[Round "6"]
[White "Dittmar, Peter"]
[Black "Klings, Peter"]
[Result "1/2-1/2"]
[ECO "A56"]
[WhiteElo "2253"]
[BlackElo "2116"]
[Annotator "ChessBase"]
[PlyCount "49"]
[EventDate "2019.10.04"]
[EventType "swiss"]
[EventCountry "ITA"]
[SourceTitle "playchess.com"]
[Source "ChessBase"]
[SourceQuality "1"]
[TimeControl "40/5400+30:1800+30"]

1. d4 {[%emt 0:00:30]} Nf6 {[%emt 0:00:30]} 2. c4 {[%emt 0:00:00]} c5 {[%emt 0:00:00]} 3. dxc5 {[%emt 0:00:00]} e6 {[%emt 0:03:00]} 4. Be3 {[%emt 0:00:30]} Na6 {[%emt 0:03:30]} 5. Nc3 {[%emt 0:01:30]} Nxc5 {[%emt 0:05:30]} 6. Qc2 {[%emt 0:14:30]} Be7 {[%emt 0:04:30]} 7. b4 {[%emt 0:00:00]} Na6 {[%emt 0:00:00]} 8. a3 b6 {[%emt 0:03:00]} 9. Nf3 {[%emt 0:00:00]} Bb7 {[%emt 0:00:30]} 10. Bd2 {[%emt 0:00:00]} Nc7 {[%emt 0:19:30]} 11. e3 {[%emt 0:02:30]} O-O {[%emt 0:00:00]} 12. Be2 {[%emt 0:02:30]} d5 {[%emt 0:03:00]} 13. O-O {[%emt 0:02:30]} dxc4 {[%emt 0:05:30]} 14. Bxc4 {[%emt 0:00:30]} Ncd5 {[%emt 0:00:00]} 15. Nxd5 {[%emt 0:24:30]} Bxd5 {[%emt 0:01:00]} 16. Bxd5 {[%emt 0:00:00]} Qxd5 {[%emt 0:01:30]} 17. Rfd1 {[%emt 0:00:00]} Rac8 {[%emt 0:10:30]} 18. Qa4 {[%emt 0:00:00]} Qb7 {[%emt 0:00:00]} 19. Rac1 {[%emt 0:00:00]} b5 {[%emt 0:03:00]} 20. Qb3 {[%emt 0:00:00]} Ne4 {[%emt 0:00:30]} 21. Be1 {[%emt 0:00:00]} Rxc1 {[%emt 0:02:30]} 22. Rxc1 {[%emt 0:18:30]} Rc8 {[%emt 0:00:30]} 23. Qb1 {[%emt 0:00:00]} Rxc1 {[%emt 0:00:30]} 24. Qxc1 {[%emt 0:00:00]} Bf6 {[%emt 0:04:30]} 25. h3 {[%emt 0:00:00]} 1/2-1/2

[Event "41st Arco Open 2019"]
[Site "Arco"]
[Date "2019.10.09"]
[Round "6"]
[White "Scheftlein, Richard"]
[Black "Heidel, Andre Nicolas"]
[Result "1/2-1/2"]
[ECO "D12"]
[WhiteElo "2236"]
[BlackElo "2140"]
[Annotator "ChessBase"]
[PlyCount "67"]
[EventDate "2019.10.04"]
[EventType "swiss"]
[EventCountry "ITA"]
[SourceTitle "playchess.com"]
[Source "ChessBase"]
[SourceQuality "1"]
[TimeControl "40/5400+30:1800+30"]

1. d4 {[%emt 0:00:30]} d5 {[%emt 0:07:30]} 2. c4 {[%emt 0:00:30]} c6 {[%emt 0:00:00]} 3. Nf3 {[%emt 0:00:00]} Nf6 {[%emt 0:00:00]} 4. e3 {[%emt 0:00:00]} Bf5 5. Nc3 {[%emt 0:00:30]} e6 {[%emt 0:00:00]} 6. Bd3 {[%emt 0:00:30]} Bxd3 {[%emt 0:00:30]} 7. Qxd3 {[%emt 0:00:30]} Nbd7 {[%emt 0:01:30]} 8. O-O Be7 {[%emt 0:01:30]} 9. e4 {[%emt 0:01:00]} dxe4 {[%emt 0:02:30]} 10. Nxe4 {[%emt 0:00:30]} Nxe4 {[%emt 0:00:30]} 11. Qxe4 {[%emt 0:00:00]} Nf6 {[%emt 0:00:00]} 12. Qe2 {[%emt 0:01:00]} O-O {[%emt 0:00:00]} 13. Bg5 {[%emt 0:12:30]} Re8 {[%emt 0:03:30]} 14. Rad1 {[%emt 0:00:00]} Nd7 {[%emt 0:02:30]} 15. Bxe7 {[%emt 0:00:00]} Qxe7 {[%emt 0:00:30]} 16. Rd3 {[%emt 0:00:00]} Nb6 {[%emt 0:00:00]} 17. b3 {[%emt 0:00:00]} Rad8 {[%emt 0:09:00]} 18. Rfd1 {[%emt 0:00:00]} Qf6 {[%emt 0:00:30]} 19. Ne5 {[%emt 0:00:00]} Rf8 {[%emt 0:03:30]} 20. Qh5 g6 {[%emt 0:05:30]} 21. Qh6 {[%emt 0:10:00]} Qg7 {[%emt 0:00:30]} 22. Qf4 {[%emt 0:00:30]} Nd7 {[%emt 0:00:00]} 23. Nf3 {[%emt 0:07:30]} f6 {[%emt 0:02:00]} 24. Re1 {[%emt 0:06:30]} Rfe8 {[%emt 0:31:30]} 25. Rde3 {[%emt 0:01:30]} Nf8 {[%emt 0:00:30]} 26. h4 {[%emt 0:02:30]} Re7 {[%emt 0:04:30]} 27. c5 {[%emt 0:33:30]} Red7 {[%emt 0:01:30]} 28. g4 {[%emt 0:00:00]} Rd5 {[%emt 0:05:07]} 29. g5 {[%emt 0:00:00]} fxg5 {[%emt 0:02:50]} 30. hxg5 {[%emt 0:00:00]} Rf5 31. Qg3 {[%emt 0:00:00]} Rdd5 {[%emt 0:04:22]} 32. Re5 Qf7 {[%emt 0:04:32]} 33. R1e3 {[%emt 0:00:00]} Qc7 {[%emt 0:00:00]} 34. b4 {[%emt 0:00:30]} 1/2-1/2

[Event "41st Arco Open 2019"]
[Site "Arco"]
[Date "2019.10.09"]
[Round "6"]
[White "Vezzosi, Paolo"]
[Black "Cardarelli, Angelo"]
[Result "1-0"]
[ECO "B38"]
[WhiteElo "2235"]
[BlackElo "2014"]
[Annotator "ChessBase"]
[PlyCount "73"]
[EventDate "2019.10.04"]
[EventType "swiss"]
[EventCountry "ITA"]
[SourceTitle "playchess.com"]
[Source "ChessBase"]
[SourceQuality "1"]
[TimeControl "40/5400+30:1800+30"]

1. c4 {[%emt 0:00:30]} c5 {[%emt 0:00:30]} 2. Nf3 {[%emt 0:00:00]} Nc6 {[%emt 0:00:00]} 3. d4 {[%emt 0:00:00]} cxd4 {[%emt 0:01:00]} 4. Nxd4 {[%emt 0:00:00]} g6 {[%emt 0:01:30]} 5. e4 {[%emt 0:00:00]} Bg7 {[%emt 0:00:30]} 6. Be3 d6 {[%emt 0:00:30]} 7. Nc3 {[%emt 0:01:00]} Nf6 {[%emt 0:01:30]} 8. Be2 {[%emt 0:03:30]} O-O {[%emt 0:00:00]} 9. O-O {[%emt 0:00:00]} Bd7 {[%emt 0:05:00]} 10. Nc2 {[%emt 0:00:00]} Ne8 {[%emt 0:08:30]} 11. Rb1 {[%emt 0:03:30]} Nc7 12. Qd2 {[%emt 0:03:30]} Ne6 {[%emt 0:16:00]} 13. Rfd1 {[%emt 0:01:30]} b6 14. f3 {[%emt 0:05:30]} Bc8 {[%emt 0:15:00]} 15. Nd5 Bb7 {[%emt 0:00:30]} 16. Bf1 {[%emt 0:06:00]} Rc8 {[%emt 0:02:30]} 17. b3 Re8 {[%emt 0:02:30]} 18. h3 {[%emt 0:09:00]} Nc5 {[%emt 0:04:30]} 19. Bg5 {[%emt 0:00:30]} Ne6 {[%emt 0:00:00]} 20. Be3 {[%emt 0:03:30]} Nc5 {[%emt 0:01:00]} 21. Na3 {[%emt 0:01:30]} Ba8 {[%emt 0:09:30]} 22. b4 Ne6 {[%emt 0:00:00]} 23. Nb5 {[%emt 0:04:00]} Rb8 {[%emt 0:08:00]} 24. Qf2 Rf8 {[%emt 0:10:22]} 25. Kh1 {[%emt 0:11:00]} f5 {[%emt 0:00:00]} 26. exf5 {[%emt 0:00:30]} Rxf5 {[%emt 0:01:47]} 27. Qg3 {[%emt 0:36:58]} a6 {[%emt 0:01:19]} 28. Nbc3 {[%emt 0:00:00]} Ned4 {[%emt 0:04:15]} 29. b5 {[%emt 0:00:00]} axb5 {[%emt 0:01:29]} 30. cxb5 {[%emt 0:00:00]} Nxf3 31. bxc6 {[%emt 0:00:00]} Bxc6 {[%emt 0:06:38]} 32. Bc4 e6 {[%emt 0:01:06]} 33. Nb4 {[%emt 0:00:00]} Be5 {[%emt 0:00:00]} 34. Nxc6 {[%emt 0:00:00]} Qc8 {[%emt 0:01:02]} 35. Ne7+ {[%emt 0:14:43]} Kf7 {[%emt 0:00:13]} 36. Nxc8 {[%emt 0:00:00]} Bxg3 {[%emt 0:00:45]} 37. Nxd6+ {[%emt 0:00:00]} 1-0

[Event "41st Arco Open 2019"]
[Site "Arco"]
[Date "2019.10.09"]
[Round "6"]
[White "Kuhn, Tobias"]
[Black "Molnar, Bela"]
[Result "0-1"]
[ECO "A49"]
[WhiteElo "2234"]
[BlackElo "2305"]
[Annotator "ChessBase"]
[PlyCount "158"]
[EventDate "2019.10.04"]
[EventType "swiss"]
[EventCountry "ITA"]
[SourceTitle "playchess.com"]
[Source "ChessBase"]
[SourceQuality "1"]
[TimeControl "40/5400+30:1800+30"]

1. Nf3 {[%emt 0:00:30]} Nf6 {[%emt 0:01:30]} 2. g3 {[%emt 0:00:00]} g6 {[%emt 0:00:00]} 3. Bg2 {[%emt 0:01:00]} Bg7 {[%emt 0:02:00]} 4. O-O {[%emt 0:01:30]} O-O {[%emt 0:00:30]} 5. d4 {[%emt 0:01:30]} d6 {[%emt 0:00:30]} 6. b3 {[%emt 0:08:30]} a5 {[%emt 0:00:30]} 7. a3 {[%emt 0:01:30]} c5 {[%emt 0:02:30]} 8. Bb2 {[%emt 0:00:00]} Ne4 {[%emt 0:01:30]} 9. Nbd2 {[%emt 0:06:00]} Nxd2 {[%emt 0:00:00]} 10. Qxd2 {[%emt 0:00:30]} Nc6 {[%emt 0:00:00]} 11. c4 {[%emt 0:07:30]} Bg4 {[%emt 0:29:30]} 12. dxc5 {[%emt 0:10:30]} Bxf3 {[%emt 0:00:00]} 13. Bxf3 {[%emt 0:04:30]} dxc5 {[%emt 0:00:00]} 14. Qc2 {[%emt 0:01:30]} Bxb2 {[%emt 0:00:00]} 15. Qxb2 Nd4 {[%emt 0:00:00]} 16. Bg2 {[%emt 0:06:00]} Qb6 {[%emt 0:00:00]} 17. Rfb1 {[%emt 0:01:30]} Rfd8 {[%emt 0:00:00]} 18. e3 {[%emt 0:03:30]} Nc6 {[%emt 0:00:00]} 19. Qc3 {[%emt 0:01:30]} Rd6 {[%emt 0:00:00]} 20. Rd1 {[%emt 0:00:00]} Rad8 {[%emt 0:00:00]} 21. Bf3 {[%emt 0:05:00]} f6 {[%emt 0:00:00]} 22. Rd5 {[%emt 0:10:30]} Ne5 {[%emt 0:00:00]} 23. Be2 {[%emt 0:02:30]} e6 {[%emt 0:00:00]} 24. Rxd6 {[%emt 0:02:30]} Rxd6 {[%emt 0:00:00]} 25. f4 {[%emt 0:03:30]} Nd7 26. Rd1 {[%emt 0:01:30]} Rxd1+ {[%emt 0:00:30]} 27. Bxd1 {[%emt 0:00:00]} Qd6 {[%emt 0:00:30]} 28. Bf3 {[%emt 0:02:02]} b6 {[%emt 0:00:30]} 29. Kf2 {[%emt 0:00:30]} Kf7 {[%emt 0:00:30]} 30. Ke2 {[%emt 0:00:22]} Ke7 31. Qc2 {[%emt 0:00:45]} f5 {[%emt 0:05:00]} 32. h3 {[%emt 0:00:00]} g5 {[%emt 0:01:30]} 33. Qc3 {[%emt 0:07:02]} e5 {[%emt 0:01:30]} 34. Bd5 {[%emt 0:00:30]} gxf4 {[%emt 0:02:30]} 35. exf4 {[%emt 0:04:12]} Qh6 36. fxe5 {[%emt 0:01:52]} Qxh3 {[%emt 0:02:00]} 37. Qe3 {[%emt 0:00:00]} Qg4+ {[%emt 0:02:30]} 38. Ke1 {[%emt 0:05:23]} Qg7 {[%emt 0:00:30]} 39. e6 {[%emt 0:00:23]} Ne5 {[%emt 0:00:00]} 40. Kf1 {[%emt 0:01:56]} Ng4 41. Qf4 {[%emt 0:26:07]} Qa1+ {[%emt 0:02:30]} 42. Ke2 {[%emt 0:00:00]} Qb2+ {[%emt 0:03:30]} 43. Kf1 {[%emt 0:01:28]} Qb1+ 44. Ke2 {[%emt 0:00:13]} Qc2+ {[%emt 0:01:00]} 45. Ke1 {[%emt 0:00:20]} Qc3+ {[%emt 0:00:30]} 46. Ke2 {[%emt 0:00:13]} Qe5+ {[%emt 0:00:30]} 47. Kf3 Nh2+ {[%emt 0:02:30]} 48. Kg2 {[%emt 0:06:54]} Qxf4 {[%emt 1:16:14]} 49. gxf4 {[%emt 0:00:02]} Ng4 50. a4 {[%emt 0:00:00]} Nf6 {[%emt 0:00:00]} 51. Kg3 {[%emt 0:01:41]} Nh5+ {[%emt 0:00:00]} 52. Kf3 {[%emt 0:00:32]} Kf6 {[%emt 0:00:00]} 53. Ke3 {[%emt 0:00:10]} Ke7 54. Kf3 {[%emt 0:00:06]} h6 {[%emt 0:00:00]} 55. Ke3 {[%emt 0:00:00]} Nf6 {[%emt 0:00:00]} 56. Kf3 {[%emt 0:00:39]} Ng8 {[%emt 0:00:00]} 57. Kg3 {[%emt 0:01:07]} Kf6 {[%emt 0:00:00]} 58. Kf3 {[%emt 0:00:35]} Ne7 {[%emt 0:00:00]} 59. Kg3 {[%emt 0:00:24]} Ng6 {[%emt 0:00:00]} 60. Kf3 {[%emt 0:00:00]} h5 {[%emt 0:00:00]} 61. Kg3 {[%emt 0:01:14]} h4+ {[%emt 0:00:00]} 62. Kf3 {[%emt 0:00:47]} Ke7 63. Ke3 {[%emt 0:00:24]} h3 64. Kf3 {[%emt 0:00:18]} h2 {[%emt 0:00:00]} 65. Kg3 {[%emt 0:00:00]} Kf6 {[%emt 0:00:00]} 66. Bh1 {[%emt 0:01:13]} Kxe6 {[%emt 0:00:00]} 67. Bd5+ {[%emt 0:00:16]} Kf6 {[%emt 0:00:00]} 68. Bf3 {[%emt 0:00:24]} Kg7 {[%emt 0:00:00]} 69. Bg2 {[%emt 0:00:09]} Nf8 {[%emt 0:00:00]} 70. Bd5 {[%emt 0:00:00]} Ne6 {[%emt 0:00:00]} 71. Bb7 {[%emt 0:01:39]} Nd4 {[%emt 0:00:00]} 72. Kxh2 {[%emt 0:00:16]} Ne2 {[%emt 0:00:00]} 73. Bf3 {[%emt 0:00:51]} Nxf4 {[%emt 0:00:00]} 74. Kg3 {[%emt 0:00:19]} Ne6 {[%emt 0:00:00]} 75. Bd1 {[%emt 0:00:00]} Kf6 {[%emt 0:00:00]} 76. Kf3 {[%emt 0:00:59]} Ke5 {[%emt 0:00:00]} 77. Ke3 {[%emt 0:00:20]} Nd4 {[%emt 0:00:00]} 78. Kd3 {[%emt 0:00:19]} f4 79. Kc3 {[%emt 0:00:36]} f3 {[%emt 0:00:00]} 0-1